fUSD/lending_fUSD_20240627
["ID","MTS","AMOUNT","RATE_DAILY","PERIOD"]
[330481457,1719477038603,-277.5889,0.000214,2]
[330481458,1719477038613,-318.54068185,0.000214,2]
[330481461,1719477038625,-586.92371815,0.000214,2]
[330481463,1719477038636,-886.91090862,0.000214,2]
[330481465,1719477038645,-490.0,0.000214,4]
[330481467,1719477038655,-981.0,0.000214,4]
[330481469,1719477038664,-981.0,0.000214,4]
[330481471,1719477038674,-257.0,0.000214,2]
[330481472,1719477038684,-302.96,0.000214,2]
[330481473,1719477038694,-163.82490802,0.000214,2]
[330481474,1719477038704,-11918.41419156,0.000214,2]
[330481475,1719477038714,-275.5,0.000214,2]
[330481476,1719477038724,-879.93587164,0.000214,2]
[330481477,1719477038734,-1022.08172846,0.000214,2]
[330481478,1719477038744,-14574.87148872,0.0002149,2]
[330481479,1719477038754,-44378.5121594,0.0002149,2]
[330481480,1719477038764,-2574.1837142,0.0002149,2]
[330481481,1719477038774,-170.44840438,0.0002149,2]
[330481482,1719477038783,-160.75,0.0002149,2]
[330481483,1719477038793,-160.75,0.0002149,2]
[330481484,1719477038803,-160.75,0.0002149,2]
[330481485,1719477038813,-160.75,0.0002149,2]
[330481486,1719477038822,-160.75,0.0002149,2]
[330481487,1719477038833,-2709.51670852,0.00021498,2]
[330481488,1719477038843,-2674.29484,0.00021499,2]
[330481489,1719477038853,-489.98909622,0.00021499,2]
[330481490,1719477038863,-439.52135702,0.00021499,2]
[330481491,1719477038873,-500.0,0.00021499,2]
[330481492,1719477038883,-385.53357806,0.00021499,2]
[330481493,1719477038893,-13098.03182842,0.000215,7]
[330481494,1719477038905,-34233.58916488,0.000215,7]
[330481495,1719477038945,-313.27200287,0.000215,7]
[330481496,1719477038957,-2010.70625113,0.000215,7]
[330481497,1719477038972,-1592.65686539,0.000215,7]
[330481498,1719477038983,-401.05803429,0.000215,7]
[330481500,1719477040291,-1356.0,0.000215,7]
[330481511,1719477040468,-984.79201644,0.000215,7]
[330481512,1719477040480,-2845.82501007,0.000215,7]
[330481513,1719477040493,-9014.30971406,0.000215,7]
[330481514,1719477040506,-8947.21879473,0.000215,7]
[330481515,1719477040518,-8943.78386462,0.000215,7]
[330481516,1719477040530,-9077.54866152,0.000215,7]
[330481517,1719477040543,-8943.84023489,0.000215,7]
[330481518,1719477040619,-1219.1179,0.000215,7]
[330481519,1719477040692,-439.015,0.000215,7]
[330481520,1719477040704,-2107.86426795,0.000215,7]
[330481531,1719477043337,-854.210001,0.000214,2]
[330481533,1719477043349,-3005.96996661,0.000214,2]
[330481535,1719477043361,-584.67017367,0.000214,2]
[330481537,1719477043376,-623.25,0.000214,2]
[330481540,1719477043547,-155.0,0.00015479,2]
[330481541,1719477043558,-491.27186738,0.000214,2]
[330481542,1719477043567,-180.91863001,0.0002149,2]
[330481543,1719477043576,-126.44550391,0.000215,7]
[330481544,1719477043630,-8479.63585047,0.000215,7]
[330481546,1719477047344,-155.62360786,0.0002148,2]
[330481547,1719477047354,-155.62360786,0.0002148,2]
[330481548,1719477047364,-155.62360786,0.0002148,2]
[330481549,1719477047373,-155.62360786,0.0002148,2]
[330481550,1719477047383,-155.62360786,0.0002148,2]
[330481551,1719477047392,-155.62360786,0.0002148,2]
[330481552,1719477047402,-155.62360786,0.0002148,2]
[330481553,1719477047411,-5007.83310024,0.000215,7]
[330481554,1719477047662,-155.62360786,0.0002148,2]
[330481555,1719477047672,-484085.44874643,0.000215,7]
[330481556,1719477047682,-48321.01417986,0.000215,5]
[330481557,1719477047717,-3980.65113712,0.000215,5]
[330481558,1719477047729,-5877.48859263,0.000215,5]
[330481559,1719477047761,-155.62360786,0.0002148,2]
[330481560,1719477047771,-1670.23343594,0.000215,5]
[330481581,1719477428611,-5962.07228059,0.000112,2]
[330481582,1719477428635,-152.49375924,0.00013599,2]
[330481583,1719477428655,-200.0,0.00013699,2]
[330481584,1719477428679,-5658.0354,0.0001377,2]
[330481585,1719477428700,-159.25862797,0.00013799,2]
[330481586,1719477428723,-2372.80026508,0.00013799,2]
[330481587,1719477428744,-150.0,0.00013869,2]
[330481588,1719477428765,-2772.55482895,0.00013869,2]
[330481589,1719477428786,-152984.02240291,0.0001387,2]
[330481590,1719477428807,-20573.9038,0.00013899,2]
[330481591,1719477428829,-15828.1271,0.00013899,2]
[330481592,1719477428851,-159.25862796,0.00013899,2]
[330481593,1719477428874,-327.18357986,0.00013899,2]
[330481594,1719477428895,-210.93790146,0.00013899,2]
[330481595,1719477428916,-20118.42045328,0.000139,2]
[330481596,1719477428937,-692960.81698093,0.00013999,2]
[330481597,1719477428958,-547792.63267388,0.00013999,2]
[330481598,1719477428981,-537281.87791789,0.00014,2]
[330481601,1719477503266,-202531.21363396,0.00014,2]
[330481602,1719477503289,-181.02431915,0.00014,2]
[330481603,1719477503313,-2372.80026505,0.00014644,2]
[330481604,1719477503334,-641.55,0.00014747,2]
[330481605,1719477503354,-1044756.41658184,0.00015,2]
[330481606,1719477546797,315.1690205,0.00018182,30]
[330481609,1719477660318,291.1,0.00010959,2]
[330481613,1719477920583,713.12,0.00010692,2]
[330481615,1719477945389,186988.04,0.00026,120]
[330481621,1719478231589,-155.0,0.00011098,2]
[330481622,1719478231599,-229.38674592,0.00011098,2]
[330481623,1719478231610,-1111.06409475,0.00011098,2]
[330481624,1719478231619,-156.05652736,0.00011098,2]
[330481625,1719478231628,-369.06453289,0.00011098,2]
[330481626,1719478231638,-684.44148417,0.00011197,2]
[330481627,1719478231646,-300.0,0.00011198,2]
[330481628,1719478231655,-1350.44360083,0.00011199,2]
[330481631,1719478231677,-32739.9615844,0.00011199,2]
[330481633,1719478231696,-341.68853004,0.00011199,2]
[330481635,1719478231712,-3832.64287863,0.00011199,2]
[330481636,1719478231741,-570.09,0.00011199,2]
[330481637,1719478231752,-84646.70920709,0.00011199,2]
[330481638,1719478231763,-14507.90531229,0.00011199,2]
[330481639,1719478231788,-760.55939495,0.00011199,2]
[330481641,1719478231817,150.0,0.00026,120]
[330481642,1719478231829,-2411.95134433,0.00011199,2]
[330481643,1719478231856,-250.33780553,0.00011199,2]
[330481647,1719478237665,-603.45575644,0.00011199,2]
[330481648,1719478237676,-910.60655848,0.00011199,2]
[330481649,1719478237687,-573.2828905,0.00011199,2]
[330481650,1719478237705,-358.33485164,0.00011199,2]
[330481651,1719478237717,-62622.23634099,0.00011199,2]
[330481652,1719478237726,-20000.0,0.00012032,2]
[330481653,1719478237735,-2679.75,0.00012032,2]
[330481654,1719478237744,-150.0,0.00012274,2]
[330481655,1719478237754,-420.0,0.00012303,2]
[330481656,1719478237763,-842.78,0.00012368,2]
[330481657,1719478237773,-23900.0,0.00012388,2]
[330481658,1719478237783,-250.0,0.00012388,2]
[330481659,1719478237791,-1627.12,0.00012397,2]
[330481660,1719478237802,-1240.62,0.00012419,2]
[330481661,1719478237812,-298.48,0.00012579,2]
[330481662,1719478237821,-394.03,0.00012579,2]
[330481663,1719478237830,-9999.99,0.00012579,2]
[330481664,1719478237845,-184.37,0.00012601,2]
[330481665,1719478237853,-499.99,0.00012601,2]
[330481666,1719478237863,-477.81,0.00012612,2]
[330481667,1719478237872,-169.43,0.00012613,2]
[330481668,1719478237882,-713.12,0.00012956,2]
[330481669,1719478237891,-500.0,0.00013058,2]
[330481670,1719478237901,-27314.19,0.00013058,2]
[330481671,1719478237910,-5445.83,0.00013058,2]
[330481672,1719478237921,-1000.0,0.00013201,2]
[330481673,1719478237931,-1000.0,0.00013237,2]
[330481674,1719478237940,-1000.0,0.00013273,2]
[330481675,1719478237949,-1000.0,0.0001331,2]
[330481676,1719478237958,-1000.0,0.00013346,2]
[330481677,1719478237967,-1000.0,0.00013382,2]
[330481678,1719478237976,-1000.0,0.00013418,2]
[330481679,1719478237986,-438.28,0.00013437,2]
[330481680,1719478237996,-1000.0,0.00013454,2]
[330481681,1719478238005,-703.69,0.00013479,2]
[330481682,1719478238015,-1000.0,0.00013491,2]
[330481683,1719478238026,-587.0,0.00013517,2]
[330481684,1719478238035,-1000.0,0.00013527,2]
[330481685,1719478238044,-2154.75,0.00013545,2]
[330481686,1719478238053,-1000.0,0.00013563,2]
[330481687,1719478238064,-1000.0,0.00013599,2]
[330481688,1719478238073,-2060.0,0.00013626,2]
[330481689,1719478238083,-1000.0,0.00013635,2]
[330481690,1719478238091,-327.18357986,0.0001364,2]
[330481691,1719478238101,-1000.0,0.00013671,2]
[330481692,1719478238110,-516.57,0.00013699,2]
[330481693,1719478238119,-344.79,0.00013699,2]
[330481694,1719478238129,-777.81,0.00013699,2]
[330481695,1719478238138,-1107.08,0.00013699,2]
[330481696,1719478238147,-1000.0,0.00013708,2]
[330481697,1719478238156,-247100.0,0.0001372,2]
[330481698,1719478238166,-173.26,0.0001374,2]
[330481699,1719478238175,-1000.0,0.00013744,2]
[330481700,1719478238185,-1000.0,0.0001378,2]
[330481701,1719478238194,-1898.24021204,0.00013799,2]
[330481702,1719478238203,-1898.24021204,0.00013799,2]
[330481703,1719478238213,-1898.24021204,0.00013799,2]
[330481704,1719478238222,-195.38298828,0.000138,2]
[330481705,1719478238232,-334.58511432,0.000138,2]
[330481706,1719478238241,-1000.0,0.00013816,2]
[330481707,1719478238251,-250.0,0.00013843,2]
[330481708,1719478238260,-1000.0,0.00013852,2]
[330481709,1719478238271,-150.0,0.00013888,2]
[330481710,1719478238280,-1000.0,0.00013889,2]
[330481711,1719478238290,-180.91863001,0.0001389,2]
[330481712,1719478238299,-4359.1182,0.00013899,2]
[330481713,1719478238308,-7500.0,0.00013899,2]
[330481714,1719478238318,-100099.4236,0.000139,2]
[330481715,1719478238327,-156.0208,0.000139,2]
[330481716,1719478238337,-300.0,0.000139,5]
[330481717,1719478238346,-581119.90082245,0.00013999,2]
[330481718,1719478238355,-2266.75314779,0.0001402,2]
[330481719,1719478238365,-6125.9,0.0001412,2]
[330481720,1719478238374,-195.38298828,0.0001435,2]
[330481721,1719478238383,-189.64865099,0.00014436,2]
[330481722,1719478238393,-1898.24021204,0.00014533,2]
[330481723,1719478238403,-201.42,0.00014533,2]
[330481724,1719478238412,-3131.07118276,0.00014599,2]
[330481725,1719478238422,-9125.45,0.00014699,2]
[330481726,1719478238431,-1113.8063305,0.000147,2]
[330481727,1719478238441,-2719.29,0.00014706,2]
[330481728,1719478238451,-165.75929235,0.0001475,2]
[330481729,1719478238460,-700.0,0.000148,5]
[330481730,1719478238470,-823.0,0.0001485,2]
[330481731,1719478238479,-334.5851143,0.00014886,2]
[330481732,1719478238489,-10541.24799187,0.00014899,2]
[330481733,1719478238498,-787.2,0.000149,2]
[330481734,1719478238507,-195.38298828,0.000149,2]
[330481735,1719478238516,-1000.0,0.000149,5]
[330481736,1719478238527,-533.27,0.00014987,2]
[330481737,1719478238536,-625.71,0.00014989,2]
[330481738,1719478238545,-3439.57,0.00014989,2]
[330481739,1719478238554,-15423.93998128,0.00014999,2]
[330481740,1719478238563,-431797.02686686,0.00015,2]
[330481741,1719478238577,-106566.9340315,0.00015,2]
[330481742,1719478238586,-24630.6982386,0.00015,2]
[330481743,1719478238595,-433.0,0.00015,2]
[330481744,1719478238604,-3131.07118267,0.00015217,2]
[330481745,1719478238613,-713.12,0.0001522,2]
[330481746,1719478238623,-300.0,0.00015366,2]
[330481747,1719478238632,-8840.03996533,0.00015399,2]
[330481748,1719478238643,-1062.99965272,0.00015399,2]
[330481749,1719478238654,-2851.90038255,0.00015399,2]
[330481750,1719478238663,-1012.2,0.00015488,2]
[330481751,1719478238672,-10000.0,0.00015645,2]
[330481752,1719478238681,-317.59478874,0.00015677,2]
[330481753,1719478238701,-1580.6454233,0.00015677,2]
[330481754,1719478238709,-184.37,0.00015751,2]
[330481755,1719478238719,-167.0,0.00015831,2]
[330481756,1719478238727,-2137.99918678,0.00015836,2]
[330481757,1719478238738,-822.49017547,0.00015836,2]
[330481758,1719478238754,-170.58182042,0.00015836,2]
[330481759,1719478238763,-334.5851143,0.00015971,2]
[330481760,1719478238772,-1000.0,0.00016103,2]
[330481761,1719478238782,-200.0,0.00016202,2]
[330481762,1719478238791,-2379.11879738,0.00016315,2]
[330481763,1719478238800,-420.0,0.00016316,2]
[330481764,1719478238809,-279.5,0.00016438,2]
[330481765,1719478238818,-3131.07118267,0.00016454,2]
[330481766,1719478238827,-169.09,0.00016526,2]
[330481767,1719478238840,-1798.04531009,0.00016537,2]
[330481768,1719478238851,-29.26868991,0.00016537,2]
[330481769,1719478238860,-360.939,0.00016537,2]
[330481770,1719478238869,-1655.0,0.00016537,2]
[330481771,1719478238880,-1276.835,0.00016537,2]
[330481772,1719478238889,-812.0,0.00016537,2]
[330481773,1719478238898,-617.0,0.00016537,2]
[330481774,1719478238908,-450.73,0.00016537,2]
[330481775,1719478238924,-1313.093,0.00016537,2]
[330481776,1719478238934,-1253.27271009,0.00016537,2]
[330481777,1719478238946,-1174.35328991,0.00016537,2]
[330481778,1719478238955,-150.736,0.00016537,2]
[330481779,1719478238964,-3223.999,0.00016537,2]
[330481780,1719478238973,-1998.826,0.00016537,2]
[330481781,1719478238982,-547.0,0.00016537,2]
[330481782,1719478238993,-51.37951009,0.00016537,2]
[330481783,1719478239004,-5119.62048991,0.00016537,2]
[330481784,1719478239014,-211.0,0.00016537,2]
[330481785,1719478239026,-12931.03021187,0.00016537,2]
[330481786,1719478239046,-672.57,0.00016537,2]
[330481787,1719478239070,-24569.39978813,0.00016537,2]
[330481788,1719478239080,-5803.0,0.00016537,2]
[330481789,1719478239090,-290.928,0.00016537,2]
[330481790,1719478239100,-1661.0,0.00016537,2]
[330481791,1719478239110,-151.187,0.00016537,2]
[330481792,1719478239119,-150.719,0.00016537,2]
[330481793,1719478239129,-1068.0,0.00016537,2]
[330481794,1719478239139,-226.12,0.00016618,2]
[330481795,1719478239148,-300.0,0.00016736,2]
[330481796,1719478239158,-7439.38525324,0.00016808,2]
[330481797,1719478239168,-5596.79021776,0.00016808,2]
[330481798,1719478239179,-6123.44302264,0.00016808,2]
[330481799,1719478239188,-1898.24021204,0.00016822,2]
[330481800,1719478239199,-279.5,0.00016944,2]
[330481801,1719478239209,-38314.0,0.00016959,2]
[330481802,1719478239379,-8102.0,0.00016959,2]
[330481803,1719478239389,-334.5851143,0.00017057,2]
[330481804,1719478239399,-1088.45140602,0.00017072,2]
[330481805,1719478239449,-2042.61977665,0.00017072,2]
[330481806,1719478239458,-167.0,0.00017117,2]
[330481807,1719478239468,-668.39184376,0.00017159,2]
[330481808,1719478239477,-1275.65882337,0.00017199,2]
[330481809,1719478239487,-155.0,0.00017257,2]
[330481810,1719478239496,-271.60383587,0.00017257,2]
[330481811,1719478239506,-155.14411492,0.00017257,2]
[330481812,1719478239515,-451.13424901,0.00017257,2]
[330481813,1719478239524,-254.55027165,0.00017257,2]
[330481814,1719478239534,-197.76408859,0.00017259,2]
[330481815,1719478239543,-156.31828028,0.00017259,2]
[330481816,1719478239552,-202.66334618,0.00017259,2]
[330481817,1719478239562,-161.21247193,0.00017259,2]
[330481818,1719478239571,-155.13795177,0.00017259,2]
[330481819,1719478239580,-4544.70847905,0.0001726,2]
[330481820,1719478239592,-399.70833916,0.0001726,2]
[330481831,1719478240502,-498.32037529,0.00015645,2]
[330481832,1719478240702,-0.00011373,0.00015645,2]
[330481833,1719478240727,-441.48538942,0.00015645,2]
[330481834,1719478240739,-7762.52913109,0.00015645,2]
[330481835,1719478240748,-8507.06875643,0.0001726,2]
[330481836,1719478243389,-925.50594997,0.00016808,2]
[330481839,1719478243449,-259.11055521,0.00016808,2]
[330481845,1719478246492,-1117.20377637,0.00016472,2]
[330481846,1719478246502,-1017.09622363,0.00016808,2]
[330481872,1719479432849,-1357.62885533,0.00011098,2]
[330481873,1719479432943,-625.3983,0.00011098,2]
[330481874,1719479432954,-950.90717399,0.00011098,2]
[330481875,1719479432966,-174.26142763,0.00011098,2]
[330481876,1719479432975,-3204.64459391,0.00011199,2]
[330481877,1719479433104,-21053.3797888,0.00011199,2]
[330481878,1719479433242,-5080.58757125,0.00011199,2]
[330481891,1719479438233,-713.78793473,0.00011199,2]
[330481893,1719479442368,-2468.58893208,0.00011199,2]
[330481894,1719479442568,-17469.88580752,0.00011199,2]
[330481895,1719479442580,-341.14000004,0.00011199,2]
[330481896,1719479442665,-25016.74197162,0.00011199,2]
[330481933,1719479444368,-2305.47796282,0.00011199,2]
[330481934,1719479447840,-95379.64728616,0.00011199,2]
[330481935,1719479447966,-493.706,0.00011199,2]
[330481941,1719479621779,499.5,0.00026,120]
[330481946,1719479917684,150.30377574,0.00010998,2]
[330481948,1719479939591,411.43689115,0.00010998,2]
[330481949,1719479944017,243.38025459,0.00010998,2]
[330481950,1719479948200,6847.79140621,0.00010998,2]
[330481951,1719479953274,263.38548045,0.00010998,2]
[330481953,1719479983194,158.06324404,0.00010998,2]
[330481954,1719479997949,267.10146818,0.00010943,2]
[330481956,1719480006507,150.0,0.00010998,2]
[330481957,1719480006732,150.0,0.00010998,2]
[330481958,1719480006925,150.0,0.00010998,2]
[330481959,1719480007174,150.0,0.00010998,2]
[330481960,1719480007285,150.0,0.00010998,2]
[330481961,1719480007459,297.17406985,0.00010998,2]
[330481963,1719480047147,411.43689115,0.00010998,2]
[330481964,1719480066374,263.17592091,0.00010998,2]
[330481969,1719480139581,384.77028012,0.00010761,2]
[330481970,1719480141812,416.33023612,0.00010774,2]
[330481971,1719480149154,411.43689115,0.00010998,2]
[330481974,1719480249197,411.43689115,0.00010998,2]
[330481975,1719480339435,411.43689115,0.00010998,2]
[330481976,1719480438669,411.43689115,0.00010998,2]
[330481979,1719480542083,411.43689115,0.00010998,2]
[330481980,1719480624994,416.33023612,0.0001093,2]
[330481981,1719480625919,384.77028012,0.00010843,2]
[330481982,1719480628671,411.43689115,0.00010998,2]
[330482009,1719480632235,-1924.90407806,0.00011098,2]
[330482011,1719480632244,-2199.73146621,0.00011098,2]
[330482012,1719480632254,-650.83910401,0.00011098,2]
[330482013,1719480632263,-887.81042537,0.00011098,2]
[330482014,1719480632273,-155.0,0.00011098,2]
[330482015,1719480632282,-242.12431802,0.00011098,2]
[330482016,1719480632294,-155.88395485,0.00011197,2]
[330482017,1719480632303,-21132.80843384,0.00011199,2]
[330482018,1719480632312,-15423.93998128,0.00011199,2]
[330482019,1719480632322,-221.9572659,0.00011199,2]
[330482020,1719480632332,-2594.28563,0.0001174,2]
[330482021,1719480632342,-2594.28564,0.0001205,2]
[330482022,1719480632351,-155.74265188,0.00012273,2]
[330482023,1719480632360,-2594.28564,0.0001236,2]
[330482024,1719480632370,-570.32,0.0001236,2]
[330482025,1719480632379,-2594.28563,0.0001268,2]
[330482026,1719480632389,-153.31,0.00012836,2]
[330482027,1719480632399,-2594.28564,0.0001299,2]
[330482028,1719480632408,-258.72,0.00013039,2]
[330482029,1719480632417,-529.72889138,0.00013128,2]
[330482030,1719480632427,-2376.71604254,0.00013128,2]
[330482031,1719480632436,-155.0,0.00013128,2]
[330482032,1719480632445,-944.47198158,0.00013128,2]
[330482033,1719480632455,-2594.28564,0.000133,2]
[330482034,1719480632464,-629.05260508,0.00013331,2]
[330482035,1719480632473,-1652.24909307,0.00013386,2]
[330482036,1719480632483,-1652.24909306,0.00013386,2]
[330482037,1719480632492,-905.44434485,0.00013574,2]
[330482038,1719480632501,-1494.01791218,0.00013849,2]
[330482039,1719480632511,-606.15,0.00013962,2]
[330482040,1719480632521,-159.72076583,0.00013989,2]
[330482041,1719480632530,-412.61839352,0.00013999,2]
[330482042,1719480632541,-4449.7269168,0.00013999,2]
[330482043,1719480632551,-625.33216649,0.00014499,2]
[330482044,1719480632560,-12746.80159494,0.000145,2]
[330482045,1719480632570,-499.99,0.000145,2]
[330482046,1719480632581,-5249.73764581,0.000145,2]
[330482047,1719480632593,-226.97665617,0.00014899,2]
[330482048,1719480632602,-297.49255665,0.00014973,2]
[330482049,1719480632612,-528.01671537,0.00014999,2]
[330482050,1719480632623,-1003.0,0.00015,2]
[330482051,1719480632632,-5000.0,0.00015,2]
[330482053,1719480632642,-1810.96741995,0.00015,2]
[330482055,1719480632652,-153.499667,0.00015068,2]
[330482057,1719480632664,-250.0,0.00015479,2]
[330482059,1719480632674,-155.04064792,0.00015535,2]
[330482061,1719480632683,-250.0,0.00015541,2]
[330482063,1719480632692,-1000.0,0.00015553,2]
[330482065,1719480632702,-553.54,0.0001572,2]
[330482066,1719480632711,-169.09,0.00015721,2]
[330482067,1719480632720,-150.0,0.00015729,2]
[330482068,1719480632730,-150.0,0.00015755,2]
[330482069,1719480632739,-150.0,0.00015781,2]
[330482070,1719480632748,-150.0,0.00015808,2]
[330482071,1719480632759,-445.5945625,0.00015832,2]
[330482072,1719480632768,-153.499667,0.0001589,2]
[330482073,1719480632778,-164.75,0.00015951,2]
[330482074,1719480632787,-178.2,0.00016081,2]
[330482075,1719480632798,-5167.0,0.00016157,2]
[330482076,1719480632807,-5799.0,0.00016157,2]
[330482077,1719480632817,-606.15,0.00016225,2]
[330482078,1719480632827,-201.42,0.00016299,2]
[330482079,1719480632836,-184.37,0.00016355,2]
[330482080,1719480632845,-164.75,0.00016366,2]
[330482081,1719480632855,-23900.0,0.00016415,2]
[330482082,1719480632865,-232.9,0.00016438,2]
[330482083,1719480632875,-1143.31424212,0.00016472,2]
[330482084,1719480632884,-150.0,0.00016472,2]
[330482085,1719480632894,-169.43,0.00016498,2]
[330482086,1719480632903,-150.0,0.000165,2]
[330482087,1719480632912,-150.0,0.00016527,2]
[330482088,1719480632922,-198.221,0.00016537,2]
[330482089,1719480632931,-193.746,0.00016537,2]
[330482090,1719480632941,-205.13,0.00016537,2]
[330482091,1719480632950,-150.0,0.00016555,2]
[330482092,1719480632960,-155.38782348,0.00016699,2]
[330482093,1719480632969,-153.499667,0.00016712,2]
[330482094,1719480632980,-164.75,0.00016782,2]
[330482095,1719480632990,-328.58563903,0.00016808,2]
[330482096,1719480633000,-232.9,0.00016944,2]
[330482097,1719480633009,-380.08819724,0.00017253,2]
[330482098,1719480633021,-6548.51442536,0.0001726,2]
[330482099,1719480633032,-759.29608487,0.00017331,2]
[330482100,1719480633043,-468.0,0.00017338,2]
[330482101,1719480633054,-5674.3922,0.00017431,2]
[330482102,1719480633065,-232.9,0.00017449,2]
[330482103,1719480633075,-1000.0,0.00017497,2]
[330482104,1719480633086,-22431.7917,0.00017531,2]
[330482105,1719480633096,-155.13287736,0.00017533,2]
[330482106,1719480633107,-153.499667,0.00017534,2]
[330482107,1719480633116,-167.0,0.00017682,2]
[330482108,1719480633126,-759.29608481,0.00017783,2]
[330482109,1719480633135,-1036.72277431,0.00017818,2]
[330482110,1719480633144,-1000.0,0.000179,2]
[330482111,1719480633154,-232.9,0.00017955,2]
[330482112,1719480633163,-370.27430286,0.00018,2]
[330482113,1719480633172,-204.40464627,0.00018,2]
[330482114,1719480633181,-204.40464627,0.00018,2]
[330482115,1719480633191,-204.40464627,0.00018,2]
[330482116,1719480633200,-204.40464627,0.00018,2]
[330482117,1719480633210,-204.40464627,0.00018,2]
[330482118,1719480633219,-853.32,0.00018192,2]
[330482119,1719480633229,-424.88,0.00018192,2]
[330482120,1719480633238,-853.32,0.00018192,2]
[330482121,1719480633248,-418.51,0.00018192,2]
[330482122,1719480633256,-1702.24,0.00018192,2]
[330482123,1719480633266,-759.29608481,0.00018235,2]
[330482124,1719480633275,-167.0,0.00018247,2]
[330482125,1719480633285,-204.40464627,0.00018356,2]
[330482126,1719480633298,-204.40464627,0.00018356,2]
[330482127,1719480633308,-204.40464627,0.00018356,2]
[330482128,1719480633317,-204.40464627,0.00018356,2]
[330482129,1719480633327,-153.499667,0.00018356,2]
[330482130,1719480633336,-204.40464627,0.00018413,2]
[330482131,1719480633346,-167.0,0.00018444,2]
[330482132,1719480633355,-232.9,0.00018461,2]
[330482133,1719480633364,-606.15,0.00018489,2]
[330482134,1719480633374,-1805.49193075,0.00018649,2]
[330482135,1719480633696,-759.29608481,0.00018687,2]
[330482136,1719480633792,-204.40464627,0.00018789,2]
[330482137,1719480633808,-204.40464627,0.00018789,2]
[330482138,1719480633818,-204.40464627,0.00018789,2]
[330482139,1719480633827,-204.40464627,0.00018789,2]
[330482140,1719480633836,-204.40464627,0.00018795,2]
[330482141,1719480633846,-167.0,0.00018812,2]
[330482142,1719480633856,-296.78659241,0.00018864,2]
[330482143,1719480633865,-150.0,0.00018877,2]
[330482144,1719480633875,-527.74,0.00018877,2]
[330482145,1719480633885,-327.18357986,0.000189,2]
[330482146,1719480633894,-232.9,0.00018966,2]
[330482147,1719480633903,-204.40464627,0.00018989,2]
[330482148,1719480633912,-204.40464627,0.0001899,2]
[330482149,1719480633922,-204.40464627,0.0001899,2]
[330482150,1719480633931,-204.40464627,0.0001899,2]
[330482151,1719480633940,-204.40464627,0.0001899,2]
[330482152,1719480633950,-204.40464627,0.0001899,2]
[330482153,1719480633959,-204.40464627,0.0001899,2]
[330482154,1719480633971,-204.40464627,0.0001899,2]
[330482155,1719480633982,-204.40464627,0.0001899,2]
[330482156,1719480633993,-204.40464627,0.0001899,2]
[330482157,1719480634002,-204.40464627,0.0001899,2]
[330482158,1719480634013,-204.40464627,0.0001899,2]
[330482159,1719480634023,-204.40464627,0.0001899,2]
[330482160,1719480634033,-204.40464627,0.0001899,2]
[330482161,1719480634043,-204.40464627,0.0001899,2]
[330482162,1719480634053,-204.40464627,0.0001899,2]
[330482163,1719480634063,-204.40464627,0.0001899,2]
[330482164,1719480634072,-204.40464627,0.0001899,2]
[330482165,1719480634082,-204.40464627,0.0001899,2]
[330482166,1719480634091,-204.40464627,0.0001899,2]
[330482167,1719480634101,-204.40464627,0.0001899,2]
[330482168,1719480634111,-204.40464627,0.0001899,2]
[330482169,1719480634121,-204.40464627,0.0001899,2]
[330482170,1719480634131,-204.40464627,0.0001899,2]
[330482171,1719480634141,-204.40464627,0.0001899,2]
[330482172,1719480634151,-92136.32229968,0.00019,2]
[330482173,1719480634914,-1052.60047608,0.00019,2]
[330482174,1719480634926,-188872.71128112,0.00019,2]
[330482175,1719480634936,-1010.71080291,0.00019,2]
[330482176,1719480634945,-759.29608481,0.00019139,2]
[330482177,1719480634956,-250.0,0.00019178,2]